fUSD/lending_fUSD_20241209
["ID","MTS","AMOUNT","RATE_DAILY","PERIOD"]
[344748834,1733764282199,-1108.7,0.00028398,15]
[344748835,1733764282209,-1108.7,0.00028398,15]
[344748836,1733764282219,-500.0,0.00028399,2]
[344748837,1733764282230,-500.0,0.00028399,2]
[344748838,1733764282240,-500.0,0.00028399,2]
[344748839,1733764282250,-500.0,0.00028399,2]
[344748840,1733764282260,-500.0,0.00028399,2]
[344748841,1733764282270,-270.8782352,0.00028399,2]
[344748842,1733764282280,-500.0,0.00028399,2]
[344748843,1733764282290,-500.0,0.00028399,2]
[344748844,1733764282300,-500.0,0.00028399,2]
[344748845,1733764282310,-500.0,0.00028399,2]
[344748846,1733764282319,-500.0,0.00028399,2]
[344748847,1733764282330,-500.0,0.00028399,2]
[344748848,1733764282343,-500.0,0.00028399,2]
[344748849,1733764282353,-500.0,0.00028399,2]
[344748850,1733764282362,-500.0,0.00028399,2]
[344748851,1733764282372,-500.0,0.00028399,2]
[344748852,1733764282381,-564.47,0.00028399,2]
[344748853,1733764282391,-564.47,0.00028399,2]
[344748854,1733764282401,-500.0,0.00028399,2]
[344748855,1733764282411,-500.0,0.00028399,2]
[344748856,1733764282420,-224.32,0.00028399,2]
[344748857,1733764282432,-500.0,0.00028399,2]
[344748858,1733764282442,-500.0,0.00028399,2]
[344748859,1733764282451,-500.0,0.00028399,2]
[344748860,1733764282461,-500.0,0.00028399,2]
[344748861,1733764282471,-500.0,0.00028399,2]
[344748862,1733764282480,-500.0,0.00028399,2]
[344748863,1733764282489,-500.0,0.00028399,2]
[344748864,1733764282498,-500.0,0.00028399,2]
[344748865,1733764282507,-250.28,0.00028399,2]
[344748866,1733764282517,-500.0,0.00028399,2]
[344748867,1733764282527,-500.0,0.00028399,2]
[344748868,1733764282536,-500.0,0.00028399,2]
[344748869,1733764282546,-500.0,0.00028399,2]
[344748870,1733764282555,-2000.0,0.000284,120]
[344748871,1733764282564,-150.0,0.000284,2]
[344748872,1733764282574,-400.0,0.000284,10]
[344748873,1733764282583,-150.0,0.00028409,2]
[344748874,1733764282593,-150.0,0.00028412,2]
[344748875,1733764282606,-3049.82189049,0.00028419,5]
[344748876,1733764282616,-671.09349395,0.00028419,2]
[344748877,1733764282625,-150.0,0.00028423,2]
[344748878,1733764282635,-150.0,0.00028423,2]
[344748879,1733764282644,-1500.0,0.00028424,2]
[344748880,1733764282653,-150.0,0.00028429,2]
[344748881,1733764282663,-150.0,0.00028432,2]
[344748882,1733764282672,-150.0,0.00028438,2]
[344748883,1733764282682,-150.0,0.00028439,2]
[344748884,1733764282692,-150.0,0.0002844,2]
[344748885,1733764282701,-150.0,0.00028448,2]
[344748886,1733764282710,-150.0,0.00028453,2]
[344748887,1733764282720,-150.0,0.00028457,2]
[344748888,1733764282729,-150.0,0.00028458,2]
[344748889,1733764282738,-500.0,0.00028458,2]
[344748890,1733764282748,-333.83,0.00028458,2]
[344748891,1733764282758,-222.24,0.00028458,2]
[344748892,1733764282767,-500.0,0.00028458,2]
[344748893,1733764282776,-500.0,0.00028458,2]
[344748894,1733764282786,-500.0,0.00028458,2]
[344748895,1733764282796,-500.0,0.00028458,2]
[344748896,1733764282805,-500.0,0.00028458,2]
[344748897,1733764282815,-500.0,0.00028458,2]
[344748898,1733764282824,-500.0,0.00028458,2]
[344748899,1733764282834,-500.0,0.00028458,2]
[344748900,1733764282844,-514.7,0.00028458,2]
[344748901,1733764282856,-500.0,0.00028458,2]
[344748902,1733764282867,-590.76,0.00028458,2]
[344748903,1733764282876,-150.0,0.00028459,2]
[344748904,1733764282885,-150.0,0.0002846,2]
[344748905,1733764282895,-150.0,0.00028463,2]
[344748906,1733764282904,-150.0,0.0002847,2]
[344748907,1733764282914,-150.0,0.00028471,2]
[344748908,1733764282924,-150.0,0.00028473,2]
[344748909,1733764282934,-150.0,0.00028475,2]
[344748910,1733764282944,-150.0,0.00028476,2]
[344748911,1733764282958,-500.0,0.00028479,2]
[344748912,1733764282967,-500.0,0.00028479,2]
[344748913,1733764282977,-500.0,0.00028479,2]
[344748914,1733764282987,-500.0,0.00028479,2]
[344748915,1733764282997,-500.0,0.00028479,2]
[344748916,1733764283007,-500.0,0.00028479,2]
[344748917,1733764283016,-20000.0,0.0002848,2]
[344748918,1733764283026,-211201.73835452,0.0002848,2]
[344748919,1733764283036,-248305.35933644,0.0002848,2]
[344748920,1733764283046,-150.0,0.00028484,2]
[344748921,1733764283056,-150.0,0.00028485,2]
[344748922,1733764283065,-1500.0,0.00028489,2]
[344748923,1733764283076,-509.0,0.0002849,2]
[344748924,1733764283084,-269.75234784,0.00028493,7]
[344748925,1733764283094,-150.0,0.00028493,7]
[344748926,1733764283105,-150.0,0.00028493,7]
[344748927,1733764283114,-150.0,0.00028493,7]
[344748928,1733764283124,-150.0,0.00028493,7]
[344748929,1733764283134,-150.0,0.00028493,7]
[344748930,1733764283143,-150.0,0.00028493,7]
[344748931,1733764283153,-150.0,0.00028496,2]
[344748932,1733764283162,-150.0,0.00028497,2]
[344748933,1733764283172,-269.75234784,0.000285,7]
[344748934,1733764283182,-400.0,0.000285,10]
[344748935,1733764283191,-150.0,0.00028503,2]
[344748936,1733764283201,-269.75234784,0.00028507,7]
[344748937,1733764283210,-150.0,0.00028507,2]
[344748938,1733764283219,-269.75234784,0.00028513,7]
[344748939,1733764283229,-150.0,0.00028514,2]
[344748940,1733764283239,-500.0,0.00028516,2]
[344748941,1733764283248,-220.95,0.00028516,2]
[344748942,1733764283257,-500.0,0.00028516,2]
[344748943,1733764283267,-500.0,0.00028516,2]
[344748944,1733764283276,-500.0,0.00028516,2]
[344748945,1733764283286,-500.0,0.00028516,2]
[344748946,1733764283295,-500.0,0.00028516,2]
[344748947,1733764283305,-236.0,0.00028516,2]
[344748948,1733764283314,-500.0,0.00028516,2]
[344748949,1733764283323,-500.0,0.00028516,2]
[344748950,1733764283333,-500.0,0.00028516,2]
[344748951,1733764283343,-500.0,0.00028516,2]
[344748952,1733764283355,-500.0,0.00028516,2]
[344748953,1733764283365,-500.0,0.00028516,2]
[344748954,1733764283374,-564.47,0.00028516,2]
[344748955,1733764283384,-564.47,0.00028516,2]
[344748956,1733764283393,-500.0,0.00028516,2]
[344748957,1733764283402,-500.0,0.00028516,2]
[344748958,1733764283521,-500.0,0.00028516,2]
[344748959,1733764283531,-500.0,0.00028516,2]
[344748960,1733764283540,-500.0,0.00028516,2]
[344748961,1733764283550,-500.0,0.00028516,2]
[344748962,1733764283559,-500.0,0.00028516,2]
[344748963,1733764283569,-500.0,0.00028516,2]
[344748964,1733764283578,-574.77,0.00028516,2]
[344748965,1733764283588,-500.0,0.00028516,2]
[344748966,1733764283598,-500.0,0.00028516,2]
[344748967,1733764283610,-500.0,0.00028516,2]
[344748968,1733764283620,-500.0,0.00028516,2]
[344748969,1733764283630,-554.68,0.00028517,2]
[344748970,1733764283640,-500.0,0.00028517,2]
[344748971,1733764283649,-500.0,0.00028517,2]
[344748972,1733764283659,-500.0,0.00028517,2]
[344748973,1733764283669,-500.0,0.00028517,2]
[344748974,1733764283679,-500.0,0.00028517,2]
[344748975,1733764283688,-500.0,0.00028517,2]
[344748976,1733764283698,-500.0,0.00028517,2]
[344748977,1733764283708,-500.0,0.00028517,2]
[344748978,1733764283718,-500.0,0.00028517,2]
[344748979,1733764283728,-311.88,0.00028517,2]
[344748980,1733764283738,-564.26,0.00028517,2]
[344748981,1733764283748,-500.0,0.00028517,2]
[344748982,1733764283758,-500.0,0.00028517,2]
[344748983,1733764283768,-500.0,0.00028517,2]
[344748984,1733764283778,-500.0,0.00028517,2]
[344748985,1733764283788,-500.0,0.00028517,2]
[344748986,1733764283797,-226.73,0.00028517,2]
[344748987,1733764283807,-500.0,0.00028517,2]
[344748988,1733764283817,-500.0,0.00028517,2]
[344748989,1733764283828,-409.26,0.00028517,2]
[344748990,1733764283837,-564.47,0.00028517,2]
[344748991,1733764283847,-564.47,0.00028517,2]
[344748992,1733764283861,-564.47,0.00028517,2]
[344748993,1733764283872,-564.47,0.00028517,2]
[344748994,1733764283882,-564.47,0.00028517,2]
[344748995,1733764283891,-564.47,0.00028517,2]
[344748996,1733764283901,-564.47,0.00028517,2]
[344748997,1733764283911,-564.47,0.00028517,2]
[344748998,1733764283920,-564.47,0.00028517,2]
[344748999,1733764283930,-564.47,0.00028517,2]
[344749000,1733764283939,-564.47,0.00028517,2]
[344749001,1733764283950,-564.47,0.00028517,2]
[344749002,1733764283964,-564.47,0.00028517,2]
[344749003,1733764283973,-564.50786787,0.00028517,2]
[344749004,1733764283983,-500.0,0.00028517,2]
[344749005,1733764283994,-500.0,0.00028517,2]
[344749006,1733764284005,-500.0,0.00028517,2]
[344749007,1733764284015,-514.32,0.00028517,2]
[344749008,1733764284025,-500.0,0.00028517,2]
[344749009,1733764284037,-339.84,0.00028517,2]
[344749010,1733764284048,-500.0,0.00028517,2]
[344749011,1733764284057,-500.0,0.00028517,2]
[344749012,1733764284067,-500.0,0.00028517,2]
[344749013,1733764284077,-507.54,0.00028517,2]
[344749014,1733764284087,-500.0,0.00028517,2]
[344749015,1733764284096,-500.0,0.00028517,2]
[344749016,1733764284110,-500.0,0.00028517,2]
[344749017,1733764284120,-500.0,0.00028517,2]
[344749018,1733764284130,-500.0,0.00028517,2]
[344749019,1733764284140,-500.0,0.00028517,2]
[344749020,1733764284149,-500.0,0.00028517,2]
[344749021,1733764284159,-500.0,0.00028517,2]
[344749022,1733764284168,-500.0,0.00028517,2]
[344749023,1733764284178,-500.0,0.00028517,2]
[344749024,1733764284187,-500.0,0.00028517,2]
[344749025,1733764284197,-500.0,0.00028517,2]
[344749026,1733764284207,-511.06,0.00028517,2]
[344749027,1733764284217,-500.0,0.00028517,2]
[344749028,1733764284227,-500.0,0.00028517,2]
[344749029,1733764284237,-500.0,0.00028517,2]
[344749030,1733764284246,-500.0,0.00028517,2]
[344749031,1733764284255,-500.0,0.00028517,2]
[344749032,1733764284264,-500.0,0.00028517,2]
[344749033,1733764284273,-500.0,0.00028517,2]
[344749034,1733764284283,-500.0,0.00028517,2]
[344749035,1733764284292,-525.94,0.00028517,2]
[344749036,1733764284302,-500.0,0.00028517,2]
[344749037,1733764284312,-500.0,0.00028517,2]
[344749038,1733764284322,-610.16,0.00028517,2]
[344749039,1733764284332,-298.638738,0.00028518,7]
[344749040,1733764284342,-344.095338,0.00028518,7]
[344749041,1733764284352,-344.095338,0.00028518,7]
[344749042,1733764284366,-344.095338,0.00028518,7]
[344749043,1733764284375,-344.095338,0.00028518,7]
[344749044,1733764284384,-151.0,0.00028518,7]
[344749045,1733764284393,-151.0,0.00028518,7]
[344749046,1733764284403,-151.0,0.00028518,7]
[344749047,1733764284412,-151.0,0.00028518,7]
[344749048,1733764284422,-151.0,0.00028518,7]
[344749049,1733764284432,-151.0,0.00028518,7]
[344749050,1733764284441,-151.0,0.00028518,7]
[344749051,1733764284451,-151.0,0.00028518,7]
[344749052,1733764284461,-291.98208,0.00028518,7]
[344749053,1733764284470,-291.98208,0.00028518,7]
[344749054,1733764284480,-291.98208,0.00028518,7]
[344749055,1733764284490,-291.98208,0.00028518,7]
[344749056,1733764284499,-500.0,0.00028518,2]
[344749057,1733764284509,-500.0,0.00028518,2]
[344749058,1733764284519,-255.5,0.00028518,2]
[344749059,1733764284528,-151.0,0.00028519,7]
[344749060,1733764284538,-151.372119,0.00028519,7]
[344749061,1733764284547,-253.590063,0.00028519,7]
[344749062,1733764284557,-151.0,0.00028519,7]
[344749063,1733764284567,-151.0,0.00028519,7]
[344749064,1733764284576,-291.389351,0.00028519,7]
[344749065,1733764284585,-291.389351,0.00028519,7]
[344749066,1733764284595,-291.389351,0.00028519,7]
[344749067,1733764284607,-291.389351,0.00028519,7]
[344749068,1733764284616,-1471.948135,0.00028519,7]
[344749069,1733764284626,-1471.948135,0.00028519,7]
[344749070,1733764284637,-1471.948135,0.00028519,7]
[344749071,1733764284646,-1471.948135,0.00028519,7]
[344749072,1733764284656,-151.0,0.00028519,7]
[344749073,1733764284666,-151.0,0.00028519,7]
[344749074,1733764284675,-158.513695,0.00028519,7]
[344749075,1733764284684,-151.0,0.00028519,7]
[344749076,1733764284693,-151.0,0.00028519,7]
[344749077,1733764284703,-151.0,0.00028519,7]
[344749078,1733764284713,-151.0,0.00028519,7]
[344749079,1733764284723,-204.61326,0.00028519,7]
[344749080,1733764284732,-475.753206,0.00028519,7]
[344749081,1733764284742,-475.753206,0.00028519,7]
[344749082,1733764284752,-475.753206,0.00028519,7]
[344749083,1733764284762,-475.753206,0.00028519,7]
[344749084,1733764284772,-151.0,0.00028519,7]
[344749085,1733764284782,-151.0,0.00028519,7]
[344749086,1733764284793,-292.940667,0.00028519,7]
[344749087,1733764284802,-151.0,0.00028519,7]
[344749088,1733764284812,-281.594426,0.00028519,7]
[344749089,1733764284822,-281.594426,0.00028519,7]
[344749090,1733764284832,-281.594426,0.00028519,7]
[344749091,1733764284842,-281.594426,0.00028519,7]
[344749092,1733764284851,-500.0,0.00028519,2]
[344749093,1733764284861,-500.0,0.00028519,2]
[344749094,1733764284871,-500.0,0.00028519,2]
[344749095,1733764284881,-500.0,0.00028519,2]
[344749096,1733764284890,-500.0,0.00028519,2]
[344749097,1733764284899,-500.0,0.00028519,2]
[344749098,1733764284909,-304.23,0.00028519,2]
[344749099,1733764284919,-3852.47000078,0.00028519,2]
[344749100,1733764284929,-493284.7442067,0.00028519,2]
[344749101,1733764284940,-20562.28523492,0.00028519,2]
[344749102,1733764284950,-4742.92380804,0.00028519,2]
[344749103,1733764284965,-4427.12160506,0.00028519,2]
[344749104,1733764284975,-18621.80320765,0.00028519,5]
[344749105,1733764284984,-16731.65033716,0.00028519,2]
[344749106,1733764284995,-32067.39027939,0.00028519,2]
[344749107,1733764285006,-41413.71634489,0.00028519,2]
[344749108,1733764285015,-4947.69358561,0.00028519,2]
[344749109,1733764285024,-3635.78194895,0.00028519,2]
[344749110,1733764285035,-14586.58992794,0.00028519,2]
[344749111,1733764285045,-3906.064912,0.00028519,2]
[344749112,1733764285054,-11691.98780353,0.00028519,2]
[344749113,1733764285064,-1245.57672066,0.00028519,2]
[344749114,1733764285073,-94319.46637215,0.00028519,2]
[344749115,1733764285082,-5118.42723416,0.00028519,2]
[344749116,1733764285091,-7622.78159776,0.00028519,2]
[344749117,1733764285101,-9123.57992661,0.00028519,2]
[344749118,1733764285112,-3378.23213914,0.00028519,2]
[344749119,1733764285123,-12677.18919086,0.00028519,2]
[344749120,1733764285131,-10460.00851461,0.00028519,3]
[344749121,1733764285141,-14659.23636562,0.00028519,3]
[344749122,1733764285151,-4763.13574302,0.00028519,10]
[344749123,1733764285160,-5247.5888598,0.00028519,4]
[344749124,1733764285170,-951.5587884,0.00028519,2]
[344749125,1733764285179,-2026.00374486,0.00028519,2]
[344749126,1733764285188,-112064.23617361,0.00028519,4]
[344749127,1733764285197,-6670.16632695,0.00028519,4]
[344749128,1733764285206,-1263.58536383,0.00028519,4]
[344749129,1733764285215,-1218.30839484,0.00028519,15]
[344749130,1733764285225,-1496.35538762,0.00028519,2]
[344749131,1733764285234,-553.34952721,0.00028519,5]
[344749132,1733764285244,-1955.33219608,0.00028519,5]
[344749133,1733764285253,-961.67430919,0.00028519,5]
[344749134,1733764285262,-859.3482983,0.00028519,5]
[344749135,1733764285271,-582.89777583,0.00028519,5]
[344749136,1733764285281,-215.36924955,0.00028519,5]
[344749137,1733764285291,-209.28139632,0.00028519,5]
[344749138,1733764285301,-4786.74821471,0.00028519,2]
[344749139,1733764285310,-2000.0,0.00028519,20]
[344749140,1733764285320,-609.34378858,0.00028519,6]
[344749141,1733764285330,-20504.5990025,0.00028519,7]
[344749142,1733764285339,-5000.0,0.00028519,2]
[344749143,1733764285348,-9992.22806547,0.00028519,2]
[344749144,1733764285464,-150.0,0.00028519,6]
[344749145,1733764285474,-150.0,0.00028519,7]
[344749146,1733764285483,-2728.69956031,0.00028519,5]
[344749147,1733764285492,-1094.49992935,0.00028519,7]
[344749148,1733764285501,-521.62831806,0.00028519,7]
[344749149,1733764285511,-213.46652343,0.00028519,7]
[344749150,1733764285521,-294.75751377,0.00028519,2]
[344749151,1733764285531,-279.20746541,0.00028519,2]
[344749152,1733764285540,-845.89191643,0.00028519,2]
[344749153,1733764285551,-587.38813925,0.00028519,2]
[344749154,1733764285560,-1620.65208246,0.00028519,5]
[344749155,1733764285570,-30604431.74339661,0.00028519,30]
[344749156,1733764285796,-1357.140603,0.00028519,30]
[344749157,1733764285808,-7817.470696,0.00028519,30]
[344749158,1733764285823,-500.0,0.00028518,2]
[344749159,1733764285833,-9779.59169399,0.00028519,30]
[344749160,1733764285845,-2398.98381604,0.00028519,30]
[344749161,1733764285863,-5077.568,0.00028519,30]
[344749162,1733764286009,-500.0,0.00021917,2]
[344749163,1733764286019,-113.17128129,0.00027901,2]
[344749164,1733764286034,-386.82871871,0.00027901,2]
[344749165,1733764286044,-500.0,0.00027901,2]
[344749166,1733764286054,-152.62058629,0.00027901,2]
[344749167,1733764286070,-347.37941371,0.00027901,2]
[344749168,1733764286079,-500.0,0.00027901,2]
[344749169,1733764286089,-500.0,0.00027901,2]
[344749170,1733764286098,-500.0,0.00027901,2]
[344749171,1733764286110,-500.0,0.00028399,2]
[344749172,1733764286119,-500.0,0.00028399,2]
[344749173,1733764286129,-500.0,0.00028516,2]
[344749174,1733764286138,-500.0,0.00028516,2]
[344749175,1733764286148,-500.0,0.00028517,2]
[344749176,1733764286158,-500.0,0.00028517,2]
[344749177,1733764286167,-440.7,0.00028517,2]
[344749178,1733764286178,-500.0,0.00028518,2]
[344749179,1733764286188,-500.0,0.00028519,2]
[344749180,1733764286197,-500.0,0.00028519,2]
[344749181,1733764286207,-500.0,0.00028519,2]
[344749182,1733764286217,-500.0,0.00028519,2]
[344749183,1733764286226,-500.0,0.00028519,2]
[344749184,1733764286235,-500.0,0.00028519,2]
[344749185,1733764286245,-500.0,0.00028519,2]
[344749186,1733764286255,-500.0,0.00028519,2]
[344749187,1733764286264,-5326.40970015,0.00028519,30]
[344749188,1733764286309,-272.28,0.00028519,2]
[344749189,1733764286319,-226.47999995,0.00028519,30]
[344749190,1733764286330,-44763.19488933,0.00028519,30]
[344749191,1733764365075,154.941873,9.863e-05,2]
[344749192,1733764365378,154.941873,9.998e-05,2]
[344749193,1733764365670,154.941873,9.998e-05,2]
[344749194,1733764365966,154.941873,9.999e-05,2]
[344749195,1733764366258,154.941873,9.999e-05,2]
[344749197,1733764367003,154.941873,9.999e-05,2]
[344749198,1733764367306,154.941873,9.999e-05,2]
[344749199,1733764369053,154.941873,9.999e-05,2]
[344749200,1733764545043,150.0,0.0001731,90]
[344749201,1733764656026,9000.0,0.0001,2]
[344749209,1733765206208,1138.11,0.0001,10]
[344749261,1733765384088,176.424857,9.863e-05,2]
[344749262,1733765384391,176.424857,9.999e-05,2]
[344749263,1733765384666,176.424857,9.999e-05,2]
[344749290,1733765432212,-150.0,0.00011099,2]
[344749291,1733765432221,-9815.1,0.000111,2]
[344749292,1733765432232,-757.01750001,0.000111,2]
[344749293,1733765432391,-1388.13996154,0.000111,2]
[344749294,1733765432405,-2310.14988369,0.000111,2]
[344749295,1733765432452,-250537.40590554,0.000111,2]
[344749307,1733765437960,-1237.91728791,0.000111,2]
[344749308,1733765437972,-709.850004,0.000111,2]
[344749309,1733765437983,-2642.500001,0.000111,2]
[344749310,1733765437994,-8884.6893,0.000111,2]
[344749311,1733765438006,-5164.16514361,0.000111,2]
[344749312,1733765438017,-7199.10975745,0.000111,2]
[344749313,1733765438034,-33531847.0003527,0.000111,2]
[344749314,1733765438045,-4725.0,0.000111,2]
[344749315,1733765438108,-1812.29724,0.000111,2]
[344749316,1733765438172,-2626.8,0.000111,2]
[344749317,1733765438192,-298.59328065,0.000111,2]
[344749318,1733765438254,-1363.83747749,0.000111,2]
[344749319,1733765438267,-517.7691157,0.000111,2]
[344749320,1733765438319,-706.1,0.000111,2]
[344749330,1733765439974,-8790.22599035,0.000111,2]
[344749331,1733765440045,-35845.8226975,0.000111,2]
[344749332,1733765440057,-10310.28202644,0.000111,2]
[344749333,1733765440071,-371.74851143,0.000111,2]
[344749334,1733765440126,-1291811.82029564,0.000111,2]
[344749335,1733765440139,-439.83573598,0.000111,2]
[344749338,1733765443252,-15890.0,0.000111,2]
[344749339,1733765443267,-2156.23694941,0.000111,2]
[344749340,1733765443278,-13399.11293426,0.000111,2]
[344749341,1733765443320,-7538.9331841,0.000111,2]
[344749342,1733765443332,-485.305,0.000111,2]
[344749343,1733765443383,-433.90147,0.000111,2]
[344749345,1733765443507,-2421.68252349,0.000111,2]
[344749346,1733765445683,155.668987,9.863e-05,2]
[344749348,1733765445904,155.668987,9.998e-05,2]
[344749349,1733765446322,-475.66000002,0.000111,2]
[344749350,1733765446351,-500.0,0.000111,2]
[344749351,1733765446393,155.668987,9.998e-05,2]
[344749352,1733765446437,-2149.357475,0.000111,2]
[344749353,1733765446449,-15158.41773,0.000111,2]
[344749354,1733765446460,-14691.3,0.000111,2]
[344749355,1733765446472,-7153.30425779,0.000111,2]
[344749356,1733765446531,155.668987,9.998e-05,2]
[344749364,1733765446830,155.668987,9.999e-05,2]
[344749370,1733765447131,155.668987,9.999e-05,2]
[344749371,1733765447436,155.668987,9.999e-05,2]
[344749372,1733765447858,155.668987,9.999e-05,2]
[344749373,1733765448201,155.668987,9.999e-05,2]
[344749374,1733765448758,155.668987,9.999e-05,2]
[344749375,1733765449064,155.668987,9.999e-05,2]
[344749376,1733765449392,155.668987,9.999e-05,2]
[344749378,1733765449693,155.668987,9.999e-05,2]
[344749379,1733765449995,155.668987,9.999e-05,2]
[344749398,1733765504066,151.221303,9.863e-05,2]
[344749399,1733765504369,151.221303,9.998e-05,2]
[344749400,1733765504671,151.221303,9.999e-05,2]
[344749401,1733765504985,151.221303,9.999e-05,2]
[344749402,1733765505280,151.221303,9.999e-05,2]
[344749403,1733765505622,151.221303,9.999e-05,2]
[344749420,1733765564588,176.424852,9.863e-05,2]
[344749421,1733765564905,176.424852,9.999e-05,2]
[344749422,1733765565195,176.424852,9.999e-05,2]
[344749423,1733765624448,176.424852,9.863e-05,2]
[344749424,1733765624771,176.424852,9.999e-05,2]
[344749425,1733765625087,176.424852,9.999e-05,2]
[344749428,1733765692415,13008.0,0.0001,7]
[344749432,1733765795429,-681.44083107,0.00010888,2]
[344749433,1733765795451,-33705.410615,0.00010918,2]
[344749434,1733765795471,-416.39437599,0.00010988,2]
[344749435,1733765795494,-150.0,0.00010988,2]
[344749436,1733765795516,-27614.0,0.00010989,2]
[344749437,1733765795537,-511.85373722,0.00011073,2]
[344749438,1733765795558,-500.0,0.00011073,2]
[344749439,1733765795581,-516.06934883,0.00011073,2]
[344749440,1733765795602,-435.04599231,0.00011073,2]
[344749441,1733765795623,-500.0,0.00011073,2]
[344749442,1733765795644,-161.26611065,0.00011073,2]
[344749443,1733765795666,-500.0,0.00011073,2]
[344749444,1733765795687,-500.0,0.00011073,2]
[344749445,1733765795708,-152.5945011,0.00011073,2]
[344749446,1733765795730,-17557.82548783,0.00011098,2]
[344749447,1733765800386,-4367.50488897,0.00011098,2]
[344749448,1733765800603,-221.7158,0.00011098,2]
[344749449,1733765800628,-45410.77931103,0.000111,2]
[344749450,1733765800763,-50000.0,0.000111,2]
[344749451,1733765802223,-50000.0,0.000111,2]
[344749452,1733765802589,-50000.0,0.000111,2]
[344749453,1733765803898,-50000.0,0.000111,2]
[344749454,1733765804585,-50000.0,0.000111,2]
[344749455,1733765806820,-50000.0,0.000111,2]
[344749456,1733765807250,-50000.0,0.000111,2]
[344749458,1733765829234,5000.0,0.0002,120]
[344749460,1733765961219,2500.0,0.00012876,120]
[344749461,1733766010447,-200.0,0.00010685,2]
[344749462,1733766010469,-3794.09820353,0.00010778,2]
[344749463,1733766010493,-2079.665,0.00010878,2]
[344749464,1733766010515,-179.489,0.00010878,2]
[344749465,1733766010538,-2811.0,0.00010989,2]
[344749466,1733766068513,352.31,0.00010851,2]
[344749467,1733766069835,150.0,0.00010959,2]
[344749468,1733766081543,1736.42,0.00010851,2]
[344749469,1733766098179,154.98,8.681e-05,2]
[344749470,1733766098406,154.98,0.00010851,2]
[344749479,1733766211997,168.71,0.0001,2]
[344749480,1733766244671,1000.0,0.00010984,2]
[344749482,1733766265068,265.02094539,0.00010968,2]
[344749485,1733766286727,2000.0,0.0001053,2]
[344749486,1733766317359,250.0,0.00010525,2]
[344749487,1733766318095,500.0,0.00010525,2]
[344749489,1733766350219,651.25,8.607e-05,2]
[344749491,1733766350563,651.25,0.00010871,2]
[344749492,1733766360299,150.0,0.00010525,2]
[344749493,1733766409037,250.0,0.00010417,2]
[344749516,1733766564011,154.0,0.00010584,2]
[344749517,1733766601552,2089.91,0.00010554,2]
[344749519,1733766620663,10000.0,0.0001,2]
[344749521,1733766622252,176.68063026,0.00010916,2]
[344749522,1733766628242,176.68063025,0.00010958,2]
[344749523,1733766632509,-166.82966766,0.00011016,2]
[344749524,1733766632518,-14474.0305074,0.00011016,2]
[344749525,1733766632536,-2399.8,0.00011016,2]
[344749526,1733766632637,-1122.046,0.00011016,2]
[344749527,1733766632648,-3667.07604842,0.00011016,2]
[344749528,1733766632657,-200.0,0.00011018,2]
[344749529,1733766632666,-150.0,0.00011041,2]
[344749530,1733766632675,-1990.0,0.00011068,2]
[344749532,1733766632684,-2565.0,0.00011068,2]
[344749533,1733766632693,-503.22554942,0.00011073,2]
[344749534,1733766632702,-500.0,0.00011073,2]